fUSD/lending_fUSD_20240414
["ID","MTS","AMOUNT","RATE_DAILY","PERIOD"]
[322581114,1713083447666,-210.58524778,0.0004,120]
[322581115,1713083447675,-193.89130492,0.0004,2]
[322581116,1713083447686,-27133.92829464,0.0004,4]
[322581117,1713083447696,-3356.81383592,0.0004,4]
[322581118,1713083447706,-1399.8046501,0.0004,30]
[322581119,1713083447716,-365.47266567,0.0004,30]
[322581120,1713083447726,-402.81108403,0.0004,30]
[322581121,1713083447736,-749.76878721,0.0004,30]
[322581122,1713083447745,-529.95923217,0.0004,120]
[322581123,1713083447755,-3232.27565572,0.0004,30]
[322581124,1713083447765,-151.97376118,0.00040182,7]
[322581125,1713083447774,-1426.65,0.00040767,15]
[322581126,1713083447784,-1468.6,0.000408,4]
[322581127,1713083447795,-1468.6,0.000408,4]
[322581128,1713083447805,-1468.6,0.000408,4]
[322581129,1713083447815,-1468.6,0.000408,4]
[322581130,1713083447825,-1468.6,0.000408,4]
[322581131,1713083447835,-1468.6,0.000408,4]
[322581132,1713083447846,-1468.6,0.000408,4]
[322581133,1713083447855,-1468.6,0.000408,4]
[322581134,1713083447865,-1468.6,0.000408,4]
[322581135,1713083447876,-1468.6,0.000408,4]
[322581136,1713083447886,-1468.6,0.000408,4]
[322581137,1713083447896,-1468.6,0.000408,4]
[322581138,1713083447906,-1468.6,0.000408,4]
[322581139,1713083447916,-1468.6,0.000408,4]
[322581140,1713083447926,-1468.6,0.000408,4]
[322581141,1713083447936,-1468.6,0.000408,4]
[322581142,1713083447946,-1468.6,0.000408,4]
[322581143,1713083447957,-1468.6,0.000408,4]
[322581144,1713083447966,-1468.6,0.000408,4]
[322581145,1713083447977,-1468.6,0.000408,4]
[322581146,1713083447988,-151.97376118,0.00040962,10]
[322581147,1713083447999,-100000.0,0.00041,41]
[322581148,1713083448009,-1000.0,0.00041,3]
[322581149,1713083448019,-152.29,0.00041096,2]
[322581150,1713083448032,-163.09380338,0.00041259,30]
[322581151,1713083448043,-154.78946012,0.00041327,30]
[322581152,1713083448054,-523.0,0.00041343,7]
[322581153,1713083448066,-166.66666667,0.00041355,30]
[322581154,1713083448077,-160.48746754,0.00041413,30]
[322581155,1713083448087,-220.28420509,0.00041584,30]
[322581156,1713083448098,-312.27,0.000416,7]
[322581157,1713083448108,-250.29,0.000416,7]
[322581158,1713083448118,-163.09380338,0.0004171,30]
[322581159,1713083448128,-151.95,0.0004171,2]
[322581160,1713083448137,-150.0,0.0004171,2]
[322581161,1713083448146,-150.0,0.0004171,2]
[322581162,1713083448155,-150.0,0.0004171,2]
[322581163,1713083448164,-150.0,0.0004171,2]
[322581164,1713083448173,-150.0,0.0004171,2]
[322581165,1713083448183,-150.0,0.0004171,2]
[322581166,1713083448192,-150.0,0.0004171,2]
[322581167,1713083448202,-150.0,0.0004171,2]
[322581168,1713083448211,-220.28640523,0.00041736,3]
[322581169,1713083448221,-151.97376118,0.00041743,13]
[322581170,1713083448230,-159.68206102,0.00041789,30]
[322581171,1713083448239,-155.46548869,0.00041858,30]
[322581172,1713083448250,-100000.0,0.00042,42]
[322581173,1713083448259,-13415.85376187,0.00042,2]
[322581174,1713083448269,-5000.0,0.00042,2]
[322581175,1713083448279,-381.46,0.00042032,2]
[322581176,1713083448292,-163.09380338,0.00042479,30]
[322581177,1713083448301,-155.03847772,0.00042515,30]
[322581178,1713083448310,-151.97376118,0.00042523,16]
[322581179,1713083448320,-706.54954827,0.00042584,57]
[322581180,1713083448329,-523.0,0.00042713,7]
[322581181,1713083448339,-963.23175079,0.0004289,10]
[322581182,1713083448349,-100000.0,0.00043,43]
[322581183,1713083448359,-1050.0,0.00043,3]
[322581184,1713083448368,-159.68206102,0.00043055,30]
[322581185,1713083448378,-151.97376118,0.00043304,19]
[322581186,1713083448387,-160.48746754,0.00043367,30]
[322581187,1713083448396,-155.03847772,0.00043433,30]
[322581188,1713083448406,-1426.65,0.00043507,15]
[322581189,1713083448416,-159.98891826,0.00043577,30]
[322581190,1713083448426,-160.48746754,0.00043762,30]
[322581191,1713083448435,-168.39194001,0.00043787,30]
[322581192,1713083448445,-3028.05,0.00043836,2]
[322581193,1713083448455,-6664.69,0.00043836,2]
[322581194,1713083448464,-163.09380338,0.00043839,30]
[322581195,1713083448474,-100000.0,0.00044,44]
[322581196,1713083448484,-334.95512308,0.00044,30]
[322581197,1713083448493,-150.0,0.00044,44]
[322581198,1713083448502,-150.0,0.00044016,120]
[322581199,1713083448512,-220.28420509,0.00044041,30]
[322581200,1713083448522,-154.99801972,0.00044064,30]
[322581201,1713083448531,-159.68206102,0.0004407,30]
[322581202,1713083448542,-523.0,0.00044082,7]
[322581203,1713083448552,-151.97376118,0.00044085,22]
[322581204,1713083448561,-757.0,0.000441,30]
[322581205,1713083448571,-150.0,0.00044164,120]
[322581206,1713083448580,-157.041416,0.00044198,64]
[322581207,1713083448590,-155.16,0.00044257,2]
[322581208,1713083448600,-381.46,0.00044296,2]
[322581209,1713083448614,-159.68206102,0.00044442,30]
[322581210,1713083448623,-155.4654887,0.00044497,30]
[322581211,1713083448633,-157.041416,0.00044498,65]
[322581212,1713083448643,-150.0,0.00044552,120]
[322581213,1713083448653,-189.7,0.00044701,2]
[322581214,1713083448662,-157.041416,0.00044798,66]
[322581215,1713083448671,-1468.6,0.000448,5]
[322581216,1713083448682,-1468.6,0.000448,5]
[322581217,1713083448692,-1468.6,0.000448,5]
[322581218,1713083448700,-1468.6,0.000448,5]
[322581219,1713083448710,-1468.6,0.000448,5]
[322581220,1713083448719,-1468.6,0.000448,5]
[322581221,1713083448728,-1468.6,0.000448,5]
[322581222,1713083448737,-1468.6,0.000448,5]
[322581223,1713083448746,-1468.6,0.000448,5]
[322581224,1713083448756,-1468.6,0.000448,5]
[322581225,1713083448765,-1468.6,0.000448,5]
[322581226,1713083448774,-1468.6,0.000448,5]
[322581227,1713083448783,-1468.6,0.000448,5]
[322581228,1713083448793,-1468.6,0.000448,5]
[322581229,1713083448802,-1468.6,0.000448,5]
[322581230,1713083448811,-1468.6,0.000448,5]
[322581231,1713083448820,-1468.6,0.000448,5]
[322581232,1713083448829,-1468.6,0.000448,5]
[322581233,1713083448839,-1468.6,0.000448,5]
[322581234,1713083448848,-1468.6,0.000448,5]
[322581235,1713083448858,-168.39194001,0.00044844,30]
[322581236,1713083448868,-151.97376118,0.00044865,25]
[322581237,1713083448877,-5000.0,0.00044986,4]
[322581238,1713083448886,-100000.0,0.00045,45]
[322581239,1713083448895,-10403.11145729,0.00045,5]
[322581240,1713083448905,-211.12211932,0.00045,4]
[322581241,1713083448915,-170.56929163,0.00045,7]
[322581242,1713083448926,-782.09175157,0.00045,120]
[322581243,1713083448938,-2190.86639253,0.00045,45]
[322581244,1713083448948,-386.70352426,0.00045,60]
[322581245,1713083448960,-1100.0,0.00045,3]
[322581246,1713083448970,-157.041416,0.00045198,67]
[322581247,1713083448981,-152.29,0.00045205,2]
[322581248,1713083448990,-163.09380338,0.00045242,30]
[322581249,1713083449002,-154.99801972,0.00045298,30]
[322581250,1713083449011,-523.0,0.00045452,30]
[322581251,1713083449021,-156.03288317,0.00045485,30]
[322581252,1713083449031,-167.041416,0.00045498,68]
[322581253,1713083449042,-150.0,0.000455,8]
[322581254,1713083449053,-154.99801972,0.00045522,30]
[322581255,1713083449063,-163.09380338,0.00045523,30]
[322581256,1713083449073,-166.69649996,0.00045637,30]
[322581257,1713083449082,-151.97376118,0.00045646,28]
[322581258,1713083449092,-152.05,0.00045662,2]
[322581259,1713083449103,-706.54954827,0.00045682,68]
[322581260,1713083449113,-159.68206102,0.00045789,30]
[322581261,1713083449123,-157.041416,0.00045798,70]
[322581262,1713083449134,-200.0,0.00045848,25]
[322581263,1713083449145,-1000.0,0.00045848,50]
[322581264,1713083449155,-500.0,0.00045848,30]
[322581265,1713083449165,-100000.0,0.00046,46]
[322581266,1713083449175,-150.0,0.00046,8]
[322581267,1713083449185,-160.48746754,0.00046068,30]
[322581268,1713083449195,-150.0,0.0004607,120]
[322581269,1713083449205,-163.09380338,0.00046137,30]
[322581270,1713083449215,-163.09380338,0.00046138,30]
[322581271,1713083449226,-157.041416,0.00046198,71]
[322581272,1713083449236,-7347.84621041,0.00046234,30]
[322581273,1713083449246,-1426.65,0.00046247,15]
[322581274,1713083449256,-151.97376118,0.00046426,31]
[322581275,1713083449266,-157.041416,0.00046498,74]
[322581276,1713083449276,-312.27,0.000465,7]
[322581277,1713083449287,-250.29,0.000465,7]
[322581278,1713083449297,-150.0,0.000465,8]
[322581279,1713083449307,-5800.0,0.00046541,7]
[322581280,1713083449316,-5800.0,0.0004655,7]
[322581281,1713083449327,-5800.0,0.00046558,7]
[322581282,1713083449337,-381.46,0.0004656,2]
[322581283,1713083449347,-5800.0,0.00046567,7]
[322581284,1713083449357,-5800.0,0.00046575,7]
[322581285,1713083449367,-5800.0,0.00046575,7]
[322581286,1713083449377,-1000.0,0.000466,4]
[322581287,1713083449388,-4205.0,0.000467,115]
[322581288,1713083449397,-157.041416,0.00046798,75]
[322581289,1713083449408,-523.0,0.00046822,30]
[322581290,1713083449418,-168.39194001,0.00046824,30]
[322581291,1713083449428,-157.59573881,0.00046942,30]
[322581292,1713083449438,-159.68206102,0.00046975,30]
[322581293,1713083449449,-260.14477758,0.00046987,120]
[322581294,1713083449460,-100000.0,0.00047,47]
[322581295,1713083449470,-10839.58013572,0.00047,120]
[322581296,1713083449480,-30007.0,0.00047,120]
[322581297,1713083449490,-19697.0,0.00047,120]
[322581298,1713083449500,-150.0,0.00047,9]
[322581299,1713083449510,-1150.0,0.00047,3]
[322581300,1713083449521,-154.78946012,0.00047022,30]
[322581301,1713083449531,-154.78946012,0.00047054,30]
[322581302,1713083449541,-157.041416,0.00047198,76]
[322581303,1713083449553,-151.97376118,0.00047207,34]
[322581304,1713083449564,-157.041416,0.00047498,77]
[322581305,1713083449573,-150.0,0.000475,9]
[322581306,1713083449584,-157.041416,0.00047798,79]
[322581307,1713083449594,-2389.59172425,0.0004784,30]
[322581308,1713083449608,-970.83802459,0.0004784,30]
[322581309,1713083449619,-183.80792924,0.0004784,30]
[322581310,1713083449629,-895.40476585,0.0004784,30]
[322581311,1713083449640,-159.98891826,0.00047945,30]
[322581312,1713083449651,-159.98891826,0.00047946,30]
[322581313,1713083449661,-151.97376118,0.00047987,37]
[322581314,1713083449671,-100000.0,0.00048,48]
[322581315,1713083449682,-959.92800631,0.00048,120]
[322581316,1713083449693,-300.0,0.00048,120]
[322581317,1713083449703,-150.0,0.00048,9]
[322581318,1713083449713,-30022.3878538,0.00048017,7]
[322581319,1713083449723,-159.68206102,0.00048089,30]
[322581320,1713083449733,-157.96399926,0.0004818,30]
[322581321,1713083449743,-523.0,0.00048192,30]
[322581322,1713083449754,-157.041416,0.00048198,81]
[322581323,1713083449765,-2389.59172425,0.00048258,30]
[322581324,1713083449776,-970.83802459,0.00048258,30]
[322581325,1713083449787,-183.80792924,0.00048258,30]
[322581326,1713083449795,-895.40476585,0.00048258,30]
[322581327,1713083449805,-480.0,0.00048306,30]
[322581328,1713083449815,-591.0,0.00048306,30]
[322581329,1713083449825,-154.78946012,0.00048403,30]
[322581330,1713083449836,-157.041416,0.00048498,82]
[322581331,1713083449848,-150.0,0.000485,9]
[322581332,1713083449859,-168.39194001,0.00048673,30]
[322581333,1713083449869,-2389.59172425,0.00048677,30]
[322581334,1713083449879,-970.83802459,0.00048677,30]
[322581335,1713083449889,-183.80792924,0.00048677,30]
[322581336,1713083449900,-895.40476585,0.00048677,30]
[322581337,1713083449911,-151.97376118,0.00048768,39]
[322581338,1713083449922,-706.54954827,0.0004878,80]
[322581339,1713083449933,-157.041416,0.00048798,83]
[322581340,1713083449943,-1468.6,0.000488,6]
[322581341,1713083449954,-1468.6,0.000488,6]
[322581342,1713083449963,-1468.6,0.000488,6]
[322581343,1713083449973,-1468.6,0.000488,6]
[322581344,1713083449982,-1468.6,0.000488,6]
[322581345,1713083449992,-1468.6,0.000488,6]
[322581346,1713083450002,-1468.6,0.000488,6]
[322581347,1713083450011,-1468.6,0.000488,6]
[322581348,1713083450022,-1468.6,0.000488,6]
[322581349,1713083450032,-1468.6,0.000488,6]
[322581350,1713083450042,-1468.6,0.000488,6]
[322581351,1713083450053,-1468.6,0.000488,6]
[322581352,1713083450063,-1468.6,0.000488,6]
[322581353,1713083450074,-1468.6,0.000488,6]
[322581354,1713083450085,-1468.6,0.000488,6]
[322581355,1713083450096,-1468.6,0.000488,6]
[322581356,1713083450106,-1468.6,0.000488,6]
[322581357,1713083450117,-1468.6,0.000488,6]
[322581358,1713083450128,-1468.6,0.000488,6]
[322581359,1713083450139,-1468.6,0.000488,6]
[322581360,1713083450150,-480.0,0.00048804,30]
[322581361,1713083450161,-591.0,0.00048804,30]
[322581362,1713083450171,-150.0,0.00048812,120]
[322581363,1713083450183,-381.46,0.00048824,2]
[322581364,1713083450193,-1544.0839668,0.00048847,2]
[322581365,1713083450204,-1813.3501859,0.00048847,2]
[322581366,1713083450214,-2082.616405,0.00048847,2]
[322581367,1713083450224,-2351.882624,0.00048847,2]
[322581368,1713083450234,-48859.0172303,0.00048847,2]
[322581369,1713083450245,-57379.3329116,0.00048847,2]
[322581370,1713083450256,-65899.648593,0.00048847,2]
[322581371,1713083450266,-74419.9642744,0.00048847,2]
[322581372,1713083450277,-473.2406573,0.00048847,2]
[322581373,1713083450287,-556.4387537,0.00048847,2]
[322581374,1713083450298,-639.6368502,0.00048847,2]
[322581375,1713083450309,-722.8349466,0.00048847,2]
[322581376,1713083450319,-614424.58689396,0.00048868,13]
[322581377,1713083450329,-39144.0075229,0.00048868,13]
[322581378,1713083450340,-200.0,0.0004887,90]
[322581379,1713083450350,-200.0,0.0004887,90]
[322581380,1713083450359,-200.0,0.0004887,90]
[322581381,1713083450369,-200.0,0.0004887,90]
[322581382,1713083450379,-200.0,0.0004887,90]
[322581383,1713083450389,-200.0,0.0004887,90]
[322581384,1713083450398,-155.63354506,0.0004888,71]
[322581385,1713083450410,-4951910.4542313,0.0004888,7]
[322581386,1713083451285,-269840.67253395,0.0004888,7]
[322581387,1713083451671,-268.30644199,0.00019969,2]
[322581388,1713083451683,-268.30644199,0.00020177,2]
[322581389,1713083451694,-1244.85664451,0.00020498,2]
[322581390,1713083451704,-268.30644199,0.00020723,2]
[322581391,1713083451715,-347.86368462,0.00022,2]
[322581392,1713083451725,-347.86368462,0.00022,2]
[322581393,1713083451736,-347.86368462,0.00022,2]
[322581394,1713083451747,-347.86368462,0.00022,2]
[322581395,1713083451757,-4906.01929106,0.0004888,7]
[322581396,1713083451770,-1354.02442179,0.0004888,7]
[322581397,1713083451783,-3237.657,0.0004888,7]
[322581398,1713083452671,-488.73793469,0.00020699,2]
[322581399,1713083452700,-756.11870982,0.00020699,2]
[322581400,1713083452710,-347.86368462,0.00022,2]
[322581401,1713083452719,-347.86368462,0.00022,2]
[322581402,1713083452729,-347.86368462,0.00022,2]
[322581403,1713083452739,-347.86368462,0.00022,2]
[322581404,1713083452749,-234.1574017,0.00022,2]
[322581405,1713083453793,-1495.83341937,0.000209,2]
[322581406,1713083453804,-2967.24275815,0.000209,2]
[322581407,1713083453813,-113.70628292,0.00022,2]
[322581408,1713083453823,-347.86368462,0.00022,2]
[322581409,1713083453832,-347.86368462,0.00022,2]
[322581410,1713083453842,-347.86368462,0.00022,2]
[322581411,1713083453851,-347.86368462,0.00022,2]
[322581412,1713083453860,-347.86368462,0.00022,2]
[322581413,1713083453869,-347.86368462,0.00022,2]
[322581414,1713083453878,-347.86368462,0.00022,2]
[322581415,1713083453887,-163.114,0.00026173,2]
[322581416,1713083453897,-279.823384,0.00027123,2]
[322581417,1713083453906,-163.114,0.00027547,2]
[322581418,1713083453915,-807.0,0.0002755,2]
[322581419,1713083453924,-615.403,0.0002755,2]
[322581420,1713083453933,-1948.0,0.0002755,2]
[322581421,1713083453942,-608.0,0.0003055,2]
[322581422,1713083453952,-807.0,0.0003055,2]
[322581423,1713083453960,-1948.0,0.0003055,2]
[322581424,1713083453969,-608.0,0.0003355,2]
[322581425,1713083453979,-810.541,0.0003355,2]
[322581426,1713083453988,-539.0,0.00048325,30]
[322581427,1713083453997,-539.0,0.00048824,30]
[322581428,1713083454006,-55810.90658807,0.0004888,7]
[322581429,1713083454018,-648.76539715,0.0004888,7]
[322581430,1713083454030,-2005.142,0.0004888,7]
[322581431,1713083454070,-151.0,0.00036838,7]
[322581432,1713083454079,-20357.51,0.0004888,7]
[322581433,1713083454091,-197505.50985089,0.0004888,7]
[322581434,1713083454659,-10008.65649059,0.0004888,7]
[322581435,1713083454670,-323469.99999985,0.0004888,7]
[322581436,1713083454694,-94274.80640795,0.0004888,7]
[322581437,1713083454705,-219909.23727347,0.0004888,7]
[322581440,1713083525122,4602.0965,0.00019701,2]
[322581441,1713083574513,9167.90083223,0.00018886,7]
[322581442,1713083592474,9167.90083223,0.00018886,7]
[322581443,1713083610470,9167.90083223,0.00018885,7]
[322581444,1713083630464,9167.90083223,0.00018885,7]
[322581445,1713083642025,1000.0,0.00019782,2]
[322581446,1713083643056,157.09438909,0.00019783,2]
[322581447,1713083654670,9167.90083223,0.00018884,7]
[322581448,1713083658491,1204.1250134,0.00019781,2]
[322581449,1713083668709,160.48037329,0.00019779,2]
[322581450,1713083669410,7120.8346,0.00019781,2]
[322581451,1713083670645,3219.03925267,0.00019781,2]
[322581452,1713083671199,320.71236542,0.00019781,2]
[322581453,1713083673826,160.48037326,0.00019779,2]
[322581454,1713083674483,6973.26091053,0.00018884,7]
[322581455,1713083680186,160.48037326,0.00019779,2]
[322581456,1713083683768,160.48037326,0.00019779,2]
[322581457,1713083688721,160.48037326,0.00019779,2]
[322581458,1713083693935,160.48037326,0.0001978,2]
[322581459,1713083698962,160.48037326,0.0001978,2]
[322581460,1713083703732,160.48037326,0.0001978,2]
[322581461,1713083708748,160.48037326,0.0001978,2]
[322581462,1713083713708,160.48037326,0.0001978,2]
[322581463,1713083718863,160.48037326,0.0001978,2]
[322581464,1713083722918,3489.5834,0.00019781,2]
[322581465,1713083723695,160.48037326,0.0001978,2]
[322581466,1713083728729,160.48037326,0.0001978,2]
[322581467,1713083733925,160.48037326,0.0001978,2]
[322581468,1713083740085,160.48037326,0.0001978,2]
[322581469,1713083743705,160.48037326,0.00019781,2]
[322581470,1713083746217,796.4891,0.00019782,2]
[322581471,1713083748721,160.48037326,0.00019781,2]
[322581472,1713083753698,160.48037326,0.00019781,2]
[322581473,1713083758742,160.48037326,0.00019781,2]
[322581474,1713083763739,160.48037326,0.00019781,2]
[322581475,1713083775808,685.61776296,0.00019781,2]
[322581476,1713083778291,157.09438909,0.00019783,2]
[322581477,1713083783454,1767.3859,0.00019781,2]
[322581478,1713083810940,380.37,0.00019772,2]
[322581479,1713083825764,179.06,0.00016712,2]
[322581480,1713083828259,501.81720493,0.00019781,2]
[322581481,1713083835856,1376.8357808,0.00019781,2]
[322581482,1713083861020,320.7123654,0.00019781,2]
[322581483,1713083866292,362.45,0.00025378,120]
[322581484,1713083866475,362.45,0.00027916,120]
[322581485,1713083866678,362.45,0.00030454,120]
[322581487,1713083976370,-167.0,0.0001987,3]
[322581488,1713083988560,2296.535,0.0001978,2]
[322581489,1713083999864,1083.71251206,0.00019781,2]
[322581490,1713084018744,171.1,0.00015728,2]
[322581491,1713084019084,171.1,0.00018349,2]
[322581492,1713084033894,320.7123654,0.00019781,2]
[322581493,1713084044493,249.78,0.00019533,2]
[322581494,1713084060136,173.72120902,0.00019783,2]
[322581498,1713084067625,200.0,0.00019533,2]
[322581499,1713084069311,5000.0,0.00036201,120]
[322581500,1713084072508,457.03,0.00019533,2]
[322581501,1713084078996,273.32944117,0.000198,2]
[322581502,1713084079704,500.0,0.00019533,2]
[322581503,1713084094320,-1866.79917533,0.00019809,2]
[322581504,1713084094343,-405.1994349,0.0001981,2]
[322581505,1713084094367,-257.83754039,0.00019811,2]
[322581506,1713084094390,-3867.48223429,0.00019812,2]
[322581507,1713084094413,-396.9,0.00019817,2]
[322581508,1713084094436,-214.28,0.0001987,3]
[322581509,1713084094459,-683.00125252,0.00019878,2]
[322581510,1713084094482,-362.61358032,0.00019878,2]
[322581511,1713084094506,-13033.89843601,0.00019878,2]
[322581512,1713084094530,-13282.64609013,0.00019879,2]
[322581513,1713084094555,-1835.57487028,0.00019879,2]
[322581514,1713084094579,-313.67729988,0.0001988,2]
[322581515,1713084094604,-545529.04088973,0.0001988,2]
[322581516,1713084094628,-29519.21118599,0.00019881,2]
[322581517,1713084094652,-499.99,0.00019881,2]
[322581518,1713084094676,-288.58,0.00019881,2]
[322581519,1713084094700,-163.3037,0.00019881,2]
[322581520,1713084094723,-39966.7422,0.00019881,2]
[322581521,1713084094748,-100000.0,0.00019881,2]
[322581522,1713084094772,-9999.99,0.00019881,2]
[322581523,1713084094801,-245000.0,0.00019883,2]
[322581524,1713084094825,-1000.0,0.00019883,2]
[322581525,1713084094849,-442.71,0.00019895,2]
[322581526,1713084094875,-2301.48221048,0.0002,2]
[322581527,1713084094898,-522.87406245,0.0002,2]
[322581528,1713084094921,-150.99,0.0002,2]
[322581529,1713084094945,-1000.0,0.00020005,2]
[322581530,1713084094967,-200.0,0.000201,2]
[322581531,1713084094990,-156.05920764,0.00020176,2]
[322581532,1713084095014,-500.0,0.00020195,2]
[322581533,1713084095044,-362.45,0.00020302,2]
[322581534,1713084095070,-150.0,0.00020302,2]
[322581535,1713084095094,-500.0,0.00020302,2]
[322581536,1713084095119,-165.25180581,0.000208,2]
[322581537,1713084095145,-151.80671861,0.000208,2]
[322581538,1713084095171,-179.73,0.00020821,2]
[322581539,1713084095196,-811.05,0.00020837,2]
[322581540,1713084095219,-24786.36885552,0.0002089,2]
[322581541,1713084095245,-281.36727661,0.000209,2]
[322581542,1713084095268,-187.52025476,0.000209,2]
[322581543,1713084095295,-3124.15332434,0.000209,2]
[322581544,1713084095318,-171.1,0.00020971,2]
[322581545,1713084095342,-171.06528897,0.00020999,2]
[322581546,1713084095371,-201.38728826,0.00020999,2]
[322581547,1713084095396,-1665266.5560905,0.00021,2]
[322581548,1713084095421,-225.26,0.00021,2]
[322581549,1713084095445,-281.04,0.00021,2]
[322581550,1713084095469,-610.58536035,0.00021,2]
[322581551,1713084095493,-200.0,0.00021353,2]
[322581552,1713084095519,-179.73,0.00021363,2]
[322581553,1713084095548,-151.80671849,0.00021598,2]
[322581554,1713084095573,-241.03,0.0002187,2]
[322581555,1713084095599,-179.73,0.00021906,2]
[322581556,1713084095623,-250.0,0.00021918,2]
[322581557,1713084095648,-784.24043551,0.00022,2]
[322581558,1713084095675,-292.20549508,0.00022,2]
[322581559,1713084095702,-292.20549508,0.00022,2]
[322581560,1713084095728,-292.20549508,0.00022,2]
[322581561,1713084095756,-292.20549508,0.00022,2]
[322581562,1713084095783,-292.20549508,0.00022,2]
[322581563,1713084095817,-292.20549508,0.00022,2]
[322581564,1713084095843,-292.20549508,0.00022,2]
[322581565,1713084095869,-292.20549508,0.00022,2]
[322581566,1713084095896,-292.20549508,0.00022,2]
[322581567,1713084095921,-292.20549508,0.00022,2]
[322581568,1713084095947,-292.20549508,0.00022,2]
[322581569,1713084095974,-292.20549508,0.00022,2]
[322581570,1713084096000,-292.20549508,0.00022,2]
[322581571,1713084096027,-292.20549508,0.00022,2]
[322581572,1713084096052,-292.20549508,0.00022,2]
[322581573,1713084096078,-292.20549508,0.00022,2]
[322581574,1713084096103,-292.20549508,0.00022,2]
[322581575,1713084096128,-292.20549508,0.00022,2]
[322581576,1713084096154,-292.20549508,0.00022,2]
[322581577,1713084096180,-292.20549508,0.00022,2]
[322581578,1713084096206,-292.20549508,0.00022,2]
[322581579,1713084096232,-292.20549508,0.00022,2]
[322581580,1713084096258,-292.20549508,0.00022,2]
[322581581,1713084096285,-292.20549508,0.00022,2]
[322581582,1713084096316,-292.20549508,0.00022,2]
[322581583,1713084096342,-292.20549508,0.00022,2]
[322581584,1713084096581,-292.20549508,0.00022,2]
[322581585,1713084096607,-292.20549508,0.00022,2]
[322581586,1713084096632,-292.20549508,0.00022,2]
[322581587,1713084096657,-292.20549508,0.00022,2]
[322581588,1713084096682,-292.20549508,0.00022,2]
[322581589,1713084096708,-292.20549508,0.00022,2]
[322581590,1713084096733,-292.20549508,0.00022,2]
[322581591,1713084096757,-292.20549508,0.00022,2]
[322581592,1713084096784,-292.20549508,0.00022,2]
[322581593,1713084096810,-292.20549508,0.00022,2]
[322581594,1713084096836,-292.20549508,0.00022,2]
[322581595,1713084096862,-292.20549508,0.00022,2]
[322581596,1713084096888,-292.20549508,0.00022,2]
[322581597,1713084096912,-292.20549508,0.00022,2]
[322581598,1713084096936,-292.20549508,0.00022,2]
[322581599,1713084096961,-292.20549508,0.00022,2]
[322581600,1713084096985,-292.20549508,0.00022,2]
[322581601,1713084097010,-292.20549508,0.00022,2]
[322581602,1713084097036,-292.20549508,0.00022,2]
[322581603,1713084097062,-292.20549508,0.00022,2]
[322581604,1713084097085,-292.20549508,0.00022,2]
[322581605,1713084097109,-292.20549508,0.00022,2]
[322581606,1713084097132,-292.20549508,0.00022,2]
[322581607,1713084097156,-292.20549508,0.00022,2]
[322581608,1713084097180,-292.20549508,0.00022,2]
[322581609,1713084097204,-292.20549508,0.00022,2]
[322581610,1713084097227,-292.20549508,0.00022,2]
[322581611,1713084097251,-292.20549508,0.00022,2]
[322581612,1713084097275,-292.20549508,0.00022,2]
[322581613,1713084097300,-292.20549508,0.00022,2]
[322581614,1713084097324,-292.20549508,0.00022,2]
[322581615,1713084097350,-292.20549508,0.00022,2]
[322581616,1713084097376,-292.20549508,0.00022,2]
[322581617,1713084097400,-292.20549508,0.00022,2]
[322581618,1713084097424,-292.20549508,0.00022,2]
[322581619,1713084097449,-292.20549508,0.00022,2]